fUST/lending_fUST_20240511
["ID","MTS","AMOUNT","RATE_DAILY","PERIOD"]
[326795506,1715381454159,-276.29159395,0.00054794,120]
[326795507,1715381454169,-500.0,0.00054794,120]
[326795508,1715381454179,-500.0,0.00054794,120]
[326795509,1715381454188,-780.28,0.00054794,120]
[326795510,1715381454201,-2756.4,0.00054794,120]
[326795511,1715381454210,-294.09498429,0.00054794,120]
[326795512,1715381454219,-500.0,0.00054794,120]
[326795513,1715381454229,-500.0,0.00054794,120]
[326795514,1715381454241,-500.0,0.00054794,120]
[326795515,1715381454250,-500.0,0.00054794,120]
[326795516,1715381454260,-500.0,0.00054794,120]
[326795517,1715381454269,-500.0,0.00054794,120]
[326795518,1715381454278,-1210.86,0.00054794,120]
[326795519,1715381454287,-500.0,0.00054794,120]
[326795520,1715381454296,-500.0,0.00054794,120]
[326795521,1715381454305,-500.0,0.00054794,120]
[326795522,1715381454314,-1070.89,0.00054794,120]
[326795523,1715381454323,-500.0,0.00054794,120]
[326795524,1715381454332,-500.0,0.00054794,120]
[326795525,1715381454342,-500.0,0.00054794,120]
[326795526,1715381454351,-1070.51,0.00054794,120]
[326795527,1715381454360,-500.0,0.00054794,120]
[326795528,1715381454370,-757.61,0.00054794,120]
[326795529,1715381454379,-4210.69,0.00054794,120]
[326795530,1715381454388,-2993.37,0.00054794,120]
[326795531,1715381454397,-551.15,0.00054794,120]
[326795532,1715381454407,-500.0,0.00054794,120]
[326795533,1715381454416,-500.0,0.00054794,120]
[326795534,1715381454426,-188.235139,0.00054794,7]
[326795535,1715381454435,-500.0,0.00054794,120]
[326795536,1715381454446,-500.0,0.00054794,120]
[326795537,1715381454455,-733.98,0.00054794,120]
[326795538,1715381454464,-188.23513596,0.00054794,7]
[326795539,1715381454474,-500.0,0.00054794,120]
[326795540,1715381454483,-500.0,0.00054794,120]
[326795541,1715381454493,-500.0,0.00054794,120]
[326795542,1715381454502,-500.0,0.00054794,120]
[326795543,1715381454512,-500.0,0.00054794,120]
[326795544,1715381454521,-500.0,0.00054794,120]
[326795545,1715381454530,-4672.91,0.00054794,120]
[326795546,1715381454539,-500.0,0.00054794,120]
[326795547,1715381454548,-500.0,0.00054794,120]
[326795548,1715381454557,-1818.74,0.00054794,120]
[326795549,1715381454566,-500.0,0.00054794,120]
[326795550,1715381454575,-500.0,0.00054794,120]
[326795551,1715381454584,-500.0,0.00054794,120]
[326795552,1715381454594,-1000.0,0.00054794,120]
[326795553,1715381454603,-500.0,0.00054794,120]
[326795554,1715381454612,-500.0,0.00054794,120]
[326795555,1715381454621,-500.0,0.00054794,120]
[326795556,1715381454630,-527.33,0.00054794,120]
[326795557,1715381454639,-500.0,0.00054794,120]
[326795558,1715381454648,-500.0,0.00054794,120]
[326795559,1715381454657,-500.0,0.00054794,120]
[326795560,1715381454666,-500.0,0.00054794,120]
[326795561,1715381454675,-368.686655,0.00054794,7]
[326795562,1715381454684,-500.0,0.00054794,120]
[326795563,1715381454694,-500.0,0.00054794,120]
[326795564,1715381454703,-500.0,0.00054794,120]
[326795565,1715381454713,-561.85150382,0.00054794,120]
[326795566,1715381454722,-500.0,0.00054794,120]
[326795567,1715381454731,-500.0,0.00054794,120]
[326795568,1715381454740,-500.0,0.00054794,120]
[326795569,1715381454749,-500.0,0.00054794,120]
[326795570,1715381454759,-368.686659,0.00054794,7]
[326795571,1715381454768,-500.0,0.00054794,120]
[326795572,1715381454777,-500.0,0.00054794,120]
[326795573,1715381454786,-500.0,0.00054794,120]
[326795574,1715381454795,-500.0,0.00054794,120]
[326795575,1715381454804,-500.0,0.00054794,120]
[326795576,1715381454814,-503.54233875,0.00054794,120]
[326795577,1715381454823,-580.1,0.00054794,120]
[326795578,1715381454832,-500.0,0.00054794,120]
[326795579,1715381454841,-1189.78,0.00054794,120]
[326795580,1715381454850,-500.0,0.00054794,120]
[326795581,1715381454859,-500.0,0.00054794,120]
[326795582,1715381454868,-388.39966571,0.00054794,120]
[326795583,1715381454877,-837.42,0.00054794,120]
[326795584,1715381454886,-599.74,0.00054794,120]
[326795585,1715381454895,-500.0,0.00054794,120]
[326795586,1715381454904,-500.0,0.00054794,120]
[326795587,1715381454913,-500.0,0.00054794,120]
[326795588,1715381454923,-1366.53,0.00054794,7]
[326795589,1715381454932,-500.0,0.00054794,120]
[326795590,1715381454941,-500.0,0.00054794,120]
[326795591,1715381454950,-500.0,0.00054794,120]
[326795592,1715381454959,-500.0,0.00054794,120]
[326795593,1715381454968,-500.0,0.00054794,120]
[326795594,1715381455106,-501.33698474,0.00054794,120]
[326795595,1715381455116,-500.0,0.00054794,120]
[326795596,1715381455125,-500.0,0.00054794,120]
[326795597,1715381455135,-500.0,0.00054794,120]
[326795598,1715381455144,-549.67,0.00054794,120]
[326795599,1715381455153,-500.0,0.00054794,120]
[326795600,1715381455164,-638.03,0.00054794,120]
[326795601,1715381455174,-500.0,0.00054794,120]
[326795602,1715381455183,-500.0,0.00054794,120]
[326795603,1715381455194,-9331.73,0.00054794,120]
[326795604,1715381455203,-369.73701415,0.00054794,120]
[326795605,1715381455212,-500.0,0.00054794,120]
[326795606,1715381455221,-500.0,0.00054794,120]
[326795607,1715381455230,-2272.92,0.00054794,120]
[326795608,1715381455239,-500.0,0.00054794,120]
[326795609,1715381455251,-623.13,0.00054794,120]
[326795610,1715381455261,-471.33123426,0.00054794,120]
[326795611,1715381455270,-500.0,0.00054794,120]
[326795612,1715381455279,-500.0,0.00054794,120]
[326795613,1715381455289,-500.0,0.00054794,120]
[326795614,1715381455298,-500.0,0.00054794,120]
[326795615,1715381455308,-500.0,0.00054794,120]
[326795616,1715381455317,-395.63404591,0.00054794,120]
[326795617,1715381455326,-3952.33,0.00054794,120]
[326795618,1715381455335,-1021.55,0.00054794,120]
[326795619,1715381455345,-500.0,0.00054794,120]
[326795620,1715381455354,-728.64,0.00054794,120]
[326795621,1715381455364,-570.68,0.00054794,120]
[326795622,1715381455373,-500.0,0.00054794,120]
[326795623,1715381455382,-7667.9,0.00054794,120]
[326795624,1715381455391,-500.0,0.00054794,120]
[326795625,1715381455400,-3673.96,0.00054794,120]
[326795626,1715381455409,-500.0,0.00054794,120]
[326795627,1715381455418,-500.0,0.00054794,120]
[326795628,1715381455427,-500.0,0.00054794,120]
[326795629,1715381455436,-500.0,0.00054794,120]
[326795630,1715381455446,-500.0,0.00054794,120]
[326795631,1715381455455,-500.0,0.00054794,120]
[326795632,1715381455465,-500.0,0.00054794,120]
[326795633,1715381455474,-450.58351438,0.00054794,120]
[326795634,1715381455484,-2110.2,0.00054794,120]
[326795635,1715381455493,-540.17207191,0.00054794,120]
[326795636,1715381455502,-500.0,0.00054794,120]
[326795637,1715381455511,-500.0,0.00054794,120]
[326795638,1715381455520,-500.0,0.00054794,120]
[326795639,1715381455529,-500.0,0.00054794,120]
[326795640,1715381455539,-628.38024839,0.00054794,120]
[326795641,1715381455548,-500.0,0.00054794,120]
[326795642,1715381455557,-601.05165984,0.00054794,120]
[326795643,1715381455566,-500.0,0.00054794,120]
[326795644,1715381455575,-500.0,0.00054794,120]
[326795645,1715381455584,-500.0,0.00054794,120]
[326795646,1715381455593,-1410.23,0.00054794,120]
[326795647,1715381455603,-1154.88,0.00054794,120]
[326795648,1715381455612,-8703.16,0.00054794,120]
[326795649,1715381455621,-500.0,0.00054794,120]
[326795650,1715381455630,-265.83733156,0.00054794,120]
[326795651,1715381455639,-536.24,0.00054794,120]
[326795652,1715381455648,-751.25,0.00054794,120]
[326795653,1715381455658,-500.0,0.00054794,120]
[326795654,1715381455667,-500.0,0.00054794,120]
[326795655,1715381455676,-500.0,0.00054794,120]
[326795656,1715381455685,-500.0,0.00054794,120]
[326795657,1715381455695,-500.0,0.00054794,120]
[326795658,1715381455704,-745.85,0.00054794,120]
[326795659,1715381455713,-500.0,0.00054794,120]
[326795660,1715381455723,-1112.7,0.00054794,120]
[326795661,1715381455732,-500.0,0.00054794,120]
[326795662,1715381455741,-819.28,0.00054794,120]
[326795663,1715381455750,-3156.04,0.00054794,120]
[326795664,1715381455759,-500.0,0.00054794,120]
[326795665,1715381455768,-500.0,0.00054794,120]
[326795666,1715381455777,-1283.02,0.00054794,120]
[326795667,1715381455786,-1747.91,0.00054794,120]
[326795668,1715381455796,-500.0,0.00054794,120]
[326795669,1715381455805,-500.0,0.00054794,120]
[326795670,1715381455814,-500.0,0.00054794,120]
[326795671,1715381455824,-500.0,0.00054794,120]
[326795672,1715381455834,-924.27,0.00054794,120]
[326795673,1715381455843,-500.0,0.00054794,120]
[326795674,1715381455852,-500.0,0.00054794,120]
[326795675,1715381455861,-500.0,0.00054794,120]
[326795676,1715381455871,-500.0,0.00054794,120]
[326795677,1715381455880,-500.0,0.00054794,120]
[326795678,1715381455889,-500.0,0.00054794,120]
[326795679,1715381455898,-500.0,0.00054794,120]
[326795680,1715381455907,-500.0,0.00054794,120]
[326795681,1715381455916,-500.0,0.00054794,120]
[326795682,1715381455926,-500.0,0.00054794,120]
[326795683,1715381455935,-500.0,0.00054794,120]
[326795684,1715381455944,-500.0,0.00054794,120]
[326795685,1715381455953,-500.0,0.00054794,120]
[326795686,1715381455962,-585.25,0.00054794,120]
[326795687,1715381455971,-500.0,0.00054794,120]
[326795688,1715381455980,-404.76272805,0.00054794,120]
[326795689,1715381455990,-500.0,0.00054794,120]
[326795690,1715381455999,-500.0,0.00054794,120]
[326795691,1715381456009,-790.87,0.00054794,120]
[326795692,1715381456018,-455.64027753,0.00054794,120]
[326795693,1715381456027,-500.0,0.00054794,120]
[326795694,1715381456036,-500.0,0.00054794,120]
[326795695,1715381456045,-1269.11,0.00054794,120]
[326795696,1715381456054,-5883.06,0.00054794,120]
[326795697,1715381456063,-1859.96,0.00054794,120]
[326795698,1715381456072,-500.0,0.00054794,120]
[326795699,1715381456081,-500.26777093,0.00054794,120]
[326795700,1715381456090,-500.0,0.00054794,120]
[326795701,1715381456099,-1701.09,0.00054794,120]
[326795702,1715381456108,-500.0,0.00054794,120]
[326795703,1715381456117,-632.32,0.00054794,60]
[326795704,1715381456126,-1691.53,0.00054794,120]
[326795705,1715381456136,-3991.97,0.00054794,120]
[326795706,1715381456145,-592.96,0.00054794,120]
[326795707,1715381456154,-500.0,0.00054794,120]
[326795708,1715381456166,-783.68,0.00054794,120]
[326795709,1715381456175,-500.0,0.00054794,120]
[326795710,1715381456184,-4891.99,0.00054794,21]
[326795711,1715381456194,-2531.38,0.00054794,120]
[326795712,1715381456204,-500.0,0.00054794,120]
[326795713,1715381456214,-500.0,0.00054794,120]
[326795714,1715381456223,-500.0,0.00054794,120]
[326795715,1715381456232,-2025.54,0.00054794,120]
[326795716,1715381456244,-500.0,0.00054794,120]
[326795717,1715381456253,-906.96,0.00054794,120]
[326795718,1715381456262,-47405.75,0.00054794,120]
[326795719,1715381456271,-2056.13,0.00054794,120]
[326795720,1715381456280,-500.0,0.00054794,120]
[326795721,1715381456289,-643.51,0.00054794,120]
[326795722,1715381456299,-278.62713299,0.00054794,120]
[326795723,1715381456308,-500.0,0.00054794,120]
[326795724,1715381456317,-852.8,0.00054794,120]
[326795725,1715381456327,-8527.55,0.00054794,120]
[326795726,1715381456336,-500.0,0.00054794,120]
[326795727,1715381456346,-972.54,0.00054794,120]
[326795728,1715381456355,-500.0,0.00054794,120]
[326795729,1715381456365,-500.0,0.00054794,120]
[326795730,1715381456374,-500.0,0.00054794,120]
[326795731,1715381456383,-1320.33,0.00054794,2]
[326795732,1715381456392,-564.81354628,0.00054794,120]
[326795733,1715381456401,-500.0,0.00054794,120]
[326795734,1715381456410,-3524.89,0.00054794,2]
[326795735,1715381456420,-546.11,0.00054794,120]
[326795736,1715381456429,-500.0,0.00054794,120]
[326795737,1715381456438,-500.0,0.00054794,120]
[326795738,1715381456449,-500.0,0.00054794,120]
[326795739,1715381456458,-500.0,0.00054794,120]
[326795740,1715381456467,-560.85,0.00054794,120]
[326795741,1715381456476,-715.77,0.00054794,120]
[326795742,1715381456485,-500.0,0.00054794,120]
[326795743,1715381456495,-500.0,0.00054794,120]
[326795744,1715381456503,-500.0,0.00054794,120]
[326795745,1715381456513,-728.84,0.00054794,120]
[326795746,1715381456522,-1524.6,0.00054794,120]
[326795747,1715381456532,-500.0,0.00054794,120]
[326795748,1715381456542,-500.0,0.00054794,120]
[326795749,1715381456551,-3815.35,0.00054794,120]
[326795750,1715381456561,-3815.35,0.00054794,120]
[326795751,1715381456570,-3815.35,0.00054794,120]
[326795752,1715381456580,-2617.66,0.00054794,120]
[326795753,1715381456590,-3815.35,0.00054794,120]
[326795754,1715381456599,-318.60045831,0.00054794,120]
[326795755,1715381456609,-426.85911566,0.00054794,120]
[326795756,1715381456618,-3815.35,0.00054794,120]
[326795757,1715381456628,-3815.35,0.00054794,120]
[326795758,1715381456638,-3815.35,0.00054794,120]
[326795759,1715381456647,-3815.35,0.00054794,120]
[326795760,1715381456656,-3815.35,0.00054794,120]
[326795761,1715381456666,-3815.35,0.00054794,120]
[326795762,1715381456675,-3815.35,0.00054794,120]
[326795763,1715381456684,-3815.35,0.00054794,120]
[326795764,1715381456693,-3815.35,0.00054794,120]
[326795765,1715381456703,-3815.35,0.00054794,120]
[326795766,1715381456712,-3815.35,0.00054794,120]
[326795767,1715381456722,-3815.35,0.00054794,120]
[326795768,1715381456731,-310.20982635,0.00054794,120]
[326795769,1715381456740,-3815.35,0.00054794,120]
[326795770,1715381456749,-3815.35,0.00054794,120]
[326795771,1715381456759,-500.0,0.00054794,120]
[326795772,1715381456768,-500.0,0.00054794,120]
[326795773,1715381456777,-3815.35,0.00054794,120]
[326795774,1715381456786,-3815.35,0.00054794,120]
[326795775,1715381456795,-3815.35,0.00054794,120]
[326795776,1715381456804,-1552.09,0.00054794,120]
[326795777,1715381456814,-3815.35,0.00054794,120]
[326795778,1715381456823,-3815.35,0.00054794,120]
[326795779,1715381456832,-1408.03,0.00054794,120]
[326795780,1715381456841,-3815.56875033,0.00054794,120]
[326795781,1715381456851,-500.0,0.00054794,120]
[326795782,1715381456860,-709.54,0.00054794,120]
[326795783,1715381456869,-500.0,0.00054794,120]
[326795784,1715381456878,-2955.83,0.00054794,120]
[326795785,1715381456887,-500.0,0.00054794,120]
[326795786,1715381456896,-500.0,0.00054794,120]
[326795787,1715381456905,-671.41,0.00054794,120]
[326795788,1715381456914,-500.0,0.00054794,120]
[326795789,1715381456923,-500.0,0.00054794,120]
[326795790,1715381456932,-500.0,0.00054794,120]
[326795791,1715381456942,-679.75,0.00054794,120]
[326795792,1715381456951,-500.0,0.00054794,120]
[326795793,1715381456960,-525.15,0.00054794,120]
[326795794,1715381456970,-500.0,0.00054794,120]
[326795795,1715381456979,-455.62001581,0.00054794,120]
[326795796,1715381456989,-17679.9,0.00054794,120]
[326795797,1715381456999,-500.0,0.00054794,120]
[326795798,1715381457008,-1500.0,0.00054794,120]
[326795799,1715381457018,-507.6342433,0.00054794,120]
[326795800,1715381457027,-500.0,0.00054794,120]
[326795801,1715381457036,-4314.35,0.00054794,120]
[326795802,1715381457046,-500.0,0.00054794,120]
[326795803,1715381457055,-500.0,0.00054794,2]
[326795804,1715381457064,-500.0,0.00054794,120]
[326795805,1715381457073,-500.0,0.00054794,120]
[326795806,1715381457082,-215.60269723,0.00054794,120]
[326795807,1715381457091,-500.0,0.00054794,120]
[326795808,1715381457100,-680.13,0.00054794,120]
[326795809,1715381457109,-500.0,0.00054794,120]
[326795810,1715381457118,-154.70604617,0.00054794,120]
[326795811,1715381457127,-500.0,0.00054794,120]
[326795812,1715381457136,-1273.71,0.00054794,120]
[326795813,1715381457146,-9229.8,0.00054794,120]
[326795814,1715381457158,-990.56,0.00054794,120]
[326795815,1715381457171,-500.0,0.00054794,120]
[326795816,1715381457181,-500.0,0.00054794,120]
[326795817,1715381457192,-500.0,0.00054794,120]
[326795818,1715381457202,-1953.0,0.00054794,120]
[326795819,1715381457211,-500.0,0.00054794,120]
[326795820,1715381457220,-1389.39,0.00054794,120]
[326795821,1715381457229,-510.44,0.00054794,2]
[326795822,1715381457242,-300.0,0.00054794,7]
[326795823,1715381457252,-12939.27,0.00054794,120]
[326795824,1715381457261,-12939.27,0.00054794,120]
[326795825,1715381457270,-12939.27,0.00054794,120]
[326795826,1715381457279,-565.02359435,0.00054794,120]
[326795827,1715381457288,-12939.27,0.00054794,120]
[326795828,1715381457299,-12939.27,0.00054794,120]
[326795829,1715381457308,-12939.27,0.00054794,120]
[326795830,1715381457317,-3744.03,0.00054794,120]
[326795831,1715381457326,-12939.27,0.00054794,120]
[326795832,1715381457336,-12939.27,0.00054794,120]
[326795833,1715381457346,-500.0,0.00054794,120]
[326795834,1715381457355,-12939.27,0.00054794,120]
[326795835,1715381457365,-12939.27,0.00054794,120]
[326795836,1715381457374,-12939.27,0.00054794,120]
[326795837,1715381457383,-12939.27,0.00054794,120]
[326795838,1715381457392,-500.0,0.00054794,120]
[326795839,1715381457401,-12939.27,0.00054794,120]
[326795840,1715381457410,-1011.1,0.00054794,120]
[326795841,1715381457419,-12939.27,0.00054794,120]
[326795842,1715381457429,-12939.27,0.00054794,120]
[326795843,1715381457438,-12939.27,0.00054794,120]
[326795844,1715381457449,-500.0,0.00054794,120]
[326795845,1715381457458,-12939.27,0.00054794,120]
[326795846,1715381457467,-12939.27,0.00054794,120]
[326795847,1715381457476,-12939.27,0.00054794,120]
[326795848,1715381457485,-650.98,0.00054794,120]
[326795849,1715381457495,-12939.27,0.00054794,120]
[326795850,1715381457505,-12939.27,0.00054794,120]
[326795851,1715381457514,-12939.27,0.00054794,120]
[326795852,1715381457523,-12939.27,0.00054794,120]
[326795853,1715381457533,-12939.40295199,0.00054794,120]
[326795854,1715381457542,-465.40109803,0.00054794,120]
[326795855,1715381457551,-500.0,0.00054794,120]
[326795856,1715381457560,-444.420975,0.00054794,7]
[326795857,1715381457569,-503.7455562,0.00054794,120]
[326795858,1715381457578,-566.32,0.00054794,120]
[326795859,1715381457588,-5009.77,0.00054794,120]
[326795860,1715381457596,-500.0,0.00054794,120]
[326795861,1715381457713,-510.05,0.00054794,120]
[326795862,1715381457738,-171.4,0.00054795,120]
[326795863,1715381457748,-217.00301387,0.00054795,120]
[326795864,1715381457757,-217.5,0.00054795,120]
[326795865,1715381457767,-157.95673736,0.00054795,120]
[326795866,1715381457776,-157.95673736,0.00054795,120]
[326795867,1715381457785,-157.95673736,0.00054795,120]
[326795868,1715381457794,-157.95673736,0.00054795,120]
[326795869,1715381457803,-157.95673736,0.00054795,120]
[326795870,1715381457812,-157.95673736,0.00054795,120]
[326795871,1715381457822,-157.95673736,0.00054795,120]
[326795872,1715381457831,-157.95673736,0.00054795,120]
[326795873,1715381457840,-157.95673736,0.00054795,120]
[326795874,1715381457849,-157.95673736,0.00054795,120]
[326795875,1715381457858,-158.45,0.00054795,120]
[326795876,1715381457867,-215.03,0.00054795,120]
[326795877,1715381457877,-171.9310167,0.00054795,120]
[326795878,1715381457886,-171.9310167,0.00054795,120]
[326795879,1715381457895,-171.9310167,0.00054795,120]
[326795880,1715381457904,-171.9310167,0.00054795,120]
[326795881,1715381457914,-172.43,0.00054795,120]
[326795882,1715381457922,-202.70261191,0.000548,30]
[326795883,1715381457932,-1181.65554787,0.00055,4]
[326795884,1715381457941,-1798.14077635,0.00055053,120]
[326795885,1715381457951,-1412.8469889,0.00055059,120]
[326795886,1715381457960,-150.97189535,0.00055175,120]
[326795887,1715381457969,-150.0,0.00055331,2]
[326795888,1715381457978,-281.0,0.000558,35]
[326795889,1715381457987,-557.0,0.0005589,120]
[326795890,1715381457997,-500.0,0.0005589,120]
[326795891,1715381458006,-500.0,0.0005589,120]
[326795892,1715381458015,-500.0,0.0005589,120]
[326795893,1715381458024,-500.0,0.0005589,120]
[326795894,1715381458034,-602.21,0.0005589,120]
[326795895,1715381458043,-500.0,0.0005589,120]
[326795896,1715381458052,-300.0,0.0005589,2]
[326795897,1715381458061,-500.0,0.0005589,120]
[326795898,1715381458070,-500.0,0.0005589,120]
[326795899,1715381458079,-500.0,0.0005589,120]
[326795900,1715381458089,-500.0,0.0005589,120]
[326795901,1715381458098,-500.0,0.0005589,120]
[326795902,1715381458107,-500.0,0.0005589,120]
[326795903,1715381458116,-500.0,0.0005589,120]
[326795904,1715381458125,-500.0,0.0005589,120]
[326795905,1715381458134,-500.0,0.0005589,120]
[326795906,1715381458143,-500.0,0.0005589,120]
[326795907,1715381458152,-500.0,0.0005589,120]
[326795908,1715381458162,-1165.04,0.0005589,120]
[326795909,1715381458175,-500.0,0.0005589,120]
[326795910,1715381458186,-549.89,0.0005589,120]
[326795911,1715381458196,-500.0,0.0005589,7]
[326795912,1715381458205,-500.0,0.0005589,120]
[326795913,1715381458214,-500.0,0.0005589,120]
[326795914,1715381458223,-500.0,0.0005589,120]
[326795915,1715381458233,-500.0,0.0005589,120]
[326795916,1715381458242,-500.0,0.0005589,120]
[326795917,1715381458254,-500.0,0.0005589,120]
[326795918,1715381458264,-500.0,0.0005589,120]
[326795919,1715381458273,-500.0,0.0005589,120]
[326795920,1715381458282,-2148.21,0.0005589,120]
[326795921,1715381458292,-609.89,0.0005589,120]
[326795922,1715381458301,-1000.0,0.0005589,120]
[326795923,1715381458310,-500.0,0.0005589,120]
[326795924,1715381458319,-500.0,0.0005589,120]
[326795925,1715381458328,-500.0,0.0005589,120]
[326795926,1715381458337,-500.0,0.0005589,7]
[326795927,1715381458347,-500.0,0.0005589,120]
[326795928,1715381458355,-500.0,0.0005589,120]
[326795929,1715381458364,-500.0,0.0005589,120]
[326795930,1715381458373,-500.0,0.0005589,120]
[326795931,1715381458382,-500.0,0.0005589,120]
[326795932,1715381458391,-500.0,0.0005589,120]
[326795933,1715381458400,-500.0,0.0005589,120]
[326795934,1715381458410,-500.0,0.0005589,120]
[326795935,1715381458419,-500.0,0.0005589,120]
[326795936,1715381458428,-500.0,0.0005589,120]
[326795937,1715381458437,-500.0,0.0005589,120]
[326795938,1715381458448,-500.0,0.0005589,120]
[326795939,1715381458457,-543.61167431,0.0005589,7]
[326795940,1715381458466,-521.69943983,0.0005589,120]
[326795941,1715381458475,-500.0,0.0005589,120]
[326795942,1715381458484,-500.0,0.0005589,120]
[326795943,1715381458493,-500.0,0.0005589,120]
[326795944,1715381458501,-500.0,0.0005589,120]
[326795945,1715381458511,-574.68,0.0005589,120]
[326795946,1715381458520,-541.11,0.0005589,120]
[326795947,1715381458528,-500.0,0.0005589,120]
[326795948,1715381458537,-500.0,0.0005589,120]
[326795949,1715381458546,-500.0,0.0005589,120]
[326795950,1715381458555,-298.51790613,0.0005589,120]
[326795951,1715381458564,-500.35865836,0.0005589,120]
[326795952,1715381458573,-430.76926495,0.0005589,120]
[326795953,1715381458582,-500.0,0.0005589,120]
[326795954,1715381458593,-500.0,0.0005589,120]
[326795955,1715381458604,-588.93949033,0.0005589,120]
[326795956,1715381458614,-500.0,0.0005589,120]
[326795957,1715381458623,-500.0,0.0005589,120]
[326795958,1715381458632,-1271.67,0.0005589,7]
[326795959,1715381458641,-500.0,0.0005589,120]
[326795960,1715381458651,-500.0,0.0005589,120]
[326795961,1715381458659,-500.0,0.0005589,120]
[326795962,1715381458669,-500.0,0.0005589,120]
[326795963,1715381458678,-500.0,0.0005589,120]
[326795964,1715381458687,-500.0,0.0005589,120]
[326795965,1715381458698,-1161.06,0.0005589,120]
[326795966,1715381458707,-500.0,0.0005589,120]
[326795967,1715381458716,-500.0,0.0005589,120]
[326795968,1715381458725,-500.0,0.0005589,120]
[326795969,1715381458734,-500.0,0.0005589,120]
[326795970,1715381458743,-151.0,0.0005589,120]
[326795971,1715381458753,-500.0,0.0005589,120]
[326795972,1715381458762,-500.0,0.0005589,120]
[326795973,1715381458771,-500.0,0.0005589,120]
[326795974,1715381458780,-500.0,0.0005589,120]
[326795975,1715381458789,-500.0,0.0005589,120]
[326795976,1715381458798,-500.0,0.0005589,120]
[326795977,1715381458808,-500.0,0.0005589,120]
[326795978,1715381458818,-500.0,0.0005589,120]
[326795979,1715381458827,-664.96,0.0005589,120]
[326795980,1715381458836,-500.0,0.0005589,120]
[326795981,1715381458845,-500.0,0.0005589,120]
[326795982,1715381458855,-500.0,0.0005589,120]
[326795983,1715381458864,-606.82,0.0005589,120]
[326795984,1715381458873,-500.0,0.0005589,120]
[326795985,1715381458883,-500.0,0.0005589,120]
[326795986,1715381458892,-2047.19,0.0005589,120]
[326795987,1715381458901,-500.0,0.0005589,120]
[326795988,1715381458911,-500.60821547,0.0005589,120]
[326795989,1715381458920,-500.0,0.0005589,120]
[326795990,1715381458930,-2115.98,0.0005589,4]
[326795991,1715381458939,-666.88,0.0005589,120]
[326795992,1715381458949,-744.8,0.0005589,120]
[326795993,1715381458959,-500.0,0.0005589,120]
[326795994,1715381458969,-671.73,0.0005589,120]
[326795995,1715381458978,-1253.15,0.0005589,120]
[326795996,1715381458987,-2379.45,0.0005589,120]
[326795997,1715381458996,-591.68,0.0005589,120]
[326795998,1715381459006,-500.0,0.0005589,120]
[326795999,1715381459016,-500.0,0.0005589,120]
[326796000,1715381459025,-576.78,0.0005589,120]
[326796001,1715381459034,-500.0,0.0005589,120]
[326796002,1715381459044,-500.0,0.0005589,120]
[326796003,1715381459053,-500.0,0.0005589,120]
[326796004,1715381459062,-534.42,0.0005589,120]
[326796005,1715381459072,-500.0,0.0005589,120]